fUSD/lending_fUSD_20240425
["ID","MTS","AMOUNT","RATE_DAILY","PERIOD"]
[323504367,1714057841772,-500.0,0.00010998,2]
[323504368,1714057841781,-500.0,0.00010998,2]
[323504369,1714057841791,-500.0,0.00010998,2]
[323504370,1714057841801,-500.0,0.00010998,2]
[323504371,1714057841811,-500.0,0.00010998,2]
[323504372,1714057841819,-500.0,0.00010998,2]
[323504373,1714057841829,-500.0,0.00010998,2]
[323504374,1714057841837,-500.0,0.00010998,2]
[323504375,1714057841845,-500.0,0.00010998,2]
[323504376,1714057841855,-500.0,0.00010998,2]
[323504377,1714057841864,-4056.37,0.00010998,2]
[323504378,1714057841874,-500.0,0.00010998,2]
[323504379,1714057841884,-226.40097436,0.00010998,2]
[323504380,1714057841894,-500.0,0.00010998,2]
[323504381,1714057841903,-500.0,0.00010998,2]
[323504382,1714057841913,-500.0,0.00010998,2]
[323504383,1714057841924,-500.0,0.00010998,2]
[323504384,1714057841933,-500.0,0.00010998,2]
[323504385,1714057841943,-504.17700013,0.00010998,2]
[323504386,1714057841952,-500.0,0.00010998,2]
[323504387,1714057841962,-500.0,0.00010998,2]
[323504388,1714057841971,-500.0,0.00010998,2]
[323504389,1714057841981,-500.0,0.00010998,2]
[323504390,1714057841990,-500.0,0.00010998,2]
[323504391,1714057842000,-500.0,0.00010998,2]
[323504392,1714057842009,-460.87604503,0.00010998,2]
[323504393,1714057842019,-500.0,0.00010998,2]
[323504394,1714057842028,-503.40038112,0.00010998,2]
[323504395,1714057842038,-500.0,0.00010998,2]
[323504396,1714057842047,-500.0,0.00010998,2]
[323504397,1714057842238,-500.0,0.00010998,2]
[323504398,1714057842247,-500.0,0.00010998,2]
[323504399,1714057842256,-500.0,0.00010998,2]
[323504400,1714057842265,-500.0,0.00010998,2]
[323504401,1714057842275,-500.0,0.00010998,2]
[323504402,1714057842284,-500.0,0.00010998,2]
[323504403,1714057842293,-500.0,0.00010998,2]
[323504404,1714057842302,-500.0,0.00010998,2]
[323504405,1714057842311,-500.0,0.00010998,2]
[323504406,1714057842320,-500.0,0.00010998,2]
[323504407,1714057842329,-500.0,0.00010998,2]
[323504408,1714057842339,-500.0,0.00010998,2]
[323504409,1714057842348,-559.5264426,0.00010998,2]
[323504410,1714057842357,-729.24,0.00010998,2]
[323504411,1714057842366,-500.0,0.00010998,2]
[323504412,1714057842375,-505.67968737,0.00010998,2]
[323504413,1714057842388,-500.0,0.00010998,2]
[323504414,1714057842397,-500.0,0.00010998,2]
[323504415,1714057842406,-500.0,0.00010998,2]
[323504416,1714057842416,-500.0,0.00010998,2]
[323504417,1714057842426,-500.0,0.00010998,2]
[323504418,1714057842435,-500.0,0.00010998,2]
[323504419,1714057842445,-500.0,0.00010998,2]
[323504420,1714057842454,-500.0,0.00010998,2]
[323504421,1714057842463,-545.52493379,0.00010998,2]
[323504422,1714057842473,-500.0,0.00010998,2]
[323504423,1714057842486,-500.0,0.00010998,2]
[323504424,1714057842495,-507.20215636,0.00010998,2]
[323504425,1714057842506,-500.0,0.00010998,2]
[323504426,1714057842516,-578.7334475,0.00010998,2]
[323504427,1714057842525,-681.98,0.00010998,2]
[323504428,1714057842535,-564.51089894,0.00010998,2]
[323504429,1714057842544,-500.0,0.00010998,2]
[323504430,1714057842553,-500.0,0.00010998,2]
[323504431,1714057842564,-500.0,0.00010998,2]
[323504432,1714057842574,-500.52900031,0.00010998,2]
[323504433,1714057842583,-500.0,0.00010998,2]
[323504434,1714057842594,-500.0,0.00010998,2]
[323504435,1714057842604,-521.6241852,0.00010998,2]
[323504436,1714057842614,-225.66667859,0.00010998,2]
[323504437,1714057842623,-500.0,0.00010998,2]
[323504438,1714057842633,-746.97,0.00010998,2]
[323504439,1714057842643,-500.0,0.00010998,2]
[323504440,1714057842653,-518.37211945,0.00010998,2]
[323504441,1714057842662,-500.19440426,0.00010998,2]
[323504443,1714057842671,-678.04,0.00010998,2]
[323504445,1714057842680,-711.92,0.00010998,2]
[323504447,1714057842689,-500.0,0.00010998,2]
[323504449,1714057842698,-500.0,0.00010998,2]
[323504451,1714057842707,-500.0,0.00010998,2]
[323504454,1714057842717,-500.0,0.00010998,2]
[323504456,1714057842726,-500.0,0.00010998,2]
[323504458,1714057842735,-760.55,0.00010998,2]
[323504460,1714057842744,-500.48198073,0.00010998,2]
[323504463,1714057842754,-500.95671944,0.00010998,2]
[323504466,1714057842764,-500.0,0.00010998,2]
[323504468,1714057842773,-500.0,0.00010998,2]
[323504469,1714057842782,-500.0,0.00010998,2]
[323504470,1714057842792,-493.06958834,0.00010998,2]
[323504471,1714057842801,-500.0,0.00010998,2]
[323504474,1714057842810,-500.0,0.00010998,2]
[323504476,1714057842819,-505.11537152,0.00010998,2]
[323504478,1714057842829,-500.0,0.00010998,2]
[323504481,1714057842838,-500.0,0.00010998,2]
[323504484,1714057842847,-507.60062284,0.00010998,2]
[323504486,1714057842857,-500.0,0.00010998,2]
[323504489,1714057842866,-500.0,0.00010998,2]
[323504491,1714057842876,-500.0,0.00010998,2]
[323504492,1714057842885,-500.0,0.00010998,2]
[323504493,1714057842894,-500.0,0.00010998,2]
[323504495,1714057842903,-500.0,0.00010998,2]
[323504496,1714057842912,-500.0,0.00010998,2]
[323504497,1714057842922,-26587.96,0.00010998,2]
[323504498,1714057842933,-500.0,0.00010998,2]
[323504499,1714057842942,-192.40242684,0.00010998,2]
[323504501,1714057842951,-364.72651066,0.00010998,2]
[323504502,1714057842961,-500.0,0.00010998,2]
[323504503,1714057842971,-500.0,0.00010998,2]
[323504504,1714057842980,-500.0,0.00010998,2]
[323504505,1714057842990,-500.0,0.00010998,2]
[323504506,1714057842999,-389.52724426,0.00010998,2]
[323504507,1714057843008,-500.0,0.00010998,2]
[323504508,1714057843018,-500.0,0.00010998,2]
[323504509,1714057843028,-500.0,0.00010998,2]
[323504510,1714057843037,-500.0,0.00010998,2]
[323504511,1714057843047,-1645.27,0.00010998,2]
[323504512,1714057843058,-500.0,0.00010998,2]
[323504513,1714057843067,-500.0,0.00010998,2]
[323504514,1714057843077,-500.0,0.00010998,2]
[323504515,1714057843088,-500.0,0.00010998,2]
[323504516,1714057843097,-500.0,0.00010998,2]
[323504517,1714057843107,-500.0,0.00010998,2]
[323504518,1714057843116,-500.0,0.00010998,2]
[323504519,1714057843125,-501.34,0.00010998,2]
[323504520,1714057843135,-500.0,0.00010998,2]
[323504521,1714057843145,-500.0,0.00010998,2]
[323504522,1714057843154,-500.0,0.00010998,2]
[323504523,1714057843164,-500.0,0.00010998,2]
[323504524,1714057843173,-3271.15,0.00010998,2]
[323504525,1714057843183,-500.0,0.00010998,2]
[323504526,1714057843193,-500.0,0.00010998,2]
[323504527,1714057843202,-500.0,0.00010998,2]
[323504528,1714057843211,-500.0,0.00010998,2]
[323504529,1714057843220,-500.0,0.00010998,2]
[323504530,1714057843230,-500.0,0.00010998,2]
[323504531,1714057843240,-500.0,0.00010998,2]
[323504532,1714057843249,-641.09750437,0.00010998,2]
[323504533,1714057843258,-500.0,0.00010998,2]
[323504534,1714057843267,-500.0,0.00010998,2]
[323504535,1714057843277,-213.61122564,0.00010998,2]
[323504536,1714057843286,-1779.52,0.00010998,2]
[323504537,1714057843296,-500.0,0.00010998,2]
[323504538,1714057843305,-500.0,0.00010998,2]
[323504539,1714057843314,-500.0,0.00010998,2]
[323504540,1714057843323,-500.0,0.00010998,2]
[323504541,1714057843332,-500.0,0.00010998,2]
[323504542,1714057843342,-500.0,0.00010998,2]
[323504543,1714057843352,-500.0,0.00010998,2]
[323504544,1714057843361,-500.0,0.00010998,2]
[323504545,1714057843370,-722.55,0.00010998,2]
[323504546,1714057843380,-509.14764831,0.00010998,2]
[323504547,1714057843393,-506.65730338,0.00010998,2]
[323504548,1714057843403,-563.72,0.00010998,2]
[323504549,1714057843413,-500.0,0.00010998,2]
[323504550,1714057843423,-500.0,0.00010998,2]
[323504551,1714057843432,-500.0,0.00010998,2]
[323504552,1714057843442,-516.45,0.00010998,2]
[323504553,1714057843452,-521.53,0.00010998,2]
[323504555,1714057843462,-757.17,0.00010998,2]
[323504556,1714057843472,-500.0,0.00010998,2]
[323504557,1714057843481,-228.15522037,0.00010998,2]
[323504558,1714057843490,-500.0,0.00010998,2]
[323504559,1714057843499,-505.49344306,0.00010998,2]
[323504560,1714057843508,-500.0,0.00010998,2]
[323504561,1714057843517,-500.0,0.00010998,2]
[323504562,1714057843526,-414.65506966,0.00010998,2]
[323504563,1714057843535,-500.0,0.00010998,2]
[323504564,1714057843545,-500.0,0.00010998,2]
[323504565,1714057843555,-500.0,0.00010998,2]
[323504566,1714057843565,-500.0,0.00010998,2]
[323504567,1714057843574,-500.0,0.00010998,2]
[323504568,1714057843583,-500.0,0.00010998,2]
[323504570,1714057843592,-500.0,0.00010998,2]
[323504572,1714057843601,-500.0,0.00010998,2]
[323504573,1714057843611,-500.0,0.00010998,2]
[323504574,1714057843620,-500.0,0.00010998,2]
[323504575,1714057843630,-1897.02,0.00010998,2]
[323504576,1714057843639,-1955.96,0.00010998,2]
[323504577,1714057843648,-500.0,0.00010998,2]
[323504578,1714057843657,-500.0,0.00010998,2]
[323504579,1714057843666,-500.0,0.00010998,2]
[323504580,1714057843675,-5542.72,0.00010998,2]
[323504581,1714057843684,-500.0,0.00010998,2]
[323504582,1714057843693,-500.0,0.00010998,2]
[323504583,1714057843703,-500.0,0.00010998,2]
[323504584,1714057843712,-500.0,0.00010998,2]
[323504585,1714057843721,-3939.99,0.00010998,2]
[323504586,1714057843730,-500.0,0.00010998,2]
[323504587,1714057843740,-500.0,0.00010998,2]
[323504588,1714057843749,-500.0,0.00010998,2]
[323504589,1714057843758,-208.4274383,0.00010998,2]
[323504590,1714057843767,-500.0,0.00010998,2]
[323504591,1714057843777,-514.68,0.00010998,2]
[323504592,1714057843786,-500.0,0.00010998,2]
[323504593,1714057843796,-215.24131147,0.00010998,2]
[323504594,1714057843805,-500.0,0.00010998,2]
[323504595,1714057843814,-500.0,0.00010998,2]
[323504596,1714057843823,-500.0,0.00010998,2]
[323504597,1714057843832,-500.0,0.00010998,2]
[323504598,1714057843842,-500.0,0.00010998,2]
[323504599,1714057843851,-500.0,0.00010998,2]
[323504600,1714057843860,-3577.13,0.00010998,2]
[323504601,1714057843869,-500.0,0.00010998,2]
[323504602,1714057843879,-500.0,0.00010998,2]
[323504603,1714057843888,-710.27,0.00010998,2]
[323504604,1714057843897,-500.0,0.00010998,2]
[323504605,1714057843907,-500.0,0.00010998,2]
[323504606,1714057843915,-500.0,0.00010998,2]
[323504607,1714057843925,-508.4744627,0.00010998,2]
[323504608,1714057843934,-500.0,0.00010998,2]
[323504609,1714057843944,-503.89755818,0.00010998,2]
[323504610,1714057843953,-1931.12,0.00010998,2]
[323504611,1714057843962,-500.0,0.00010998,2]
[323504612,1714057843971,-500.0,0.00010998,2]
[323504613,1714057843981,-500.0,0.00010998,2]
[323504614,1714057843990,-500.0,0.00010998,2]
[323504615,1714057844000,-500.45037706,0.00010998,2]
[323504616,1714057844010,-500.0,0.00010998,2]
[323504617,1714057844019,-443.89,0.00010998,2]
[323504618,1714057844029,-506.74581518,0.00010998,2]
[323504619,1714057844038,-500.0,0.00010998,2]
[323504620,1714057844048,-500.0,0.00010998,2]
[323504621,1714057844057,-757.5,0.00010998,2]
[323504622,1714057844067,-500.0,0.00010998,2]
[323504623,1714057844075,-500.0,0.00010998,2]
[323504624,1714057844085,-500.0,0.00010998,2]
[323504625,1714057844094,-500.0,0.00010998,2]
[323504626,1714057844103,-500.0,0.00010998,2]
[323504627,1714057844112,-500.0,0.00010998,2]
[323504628,1714057844121,-506.14,0.00010998,2]
[323504629,1714057844130,-500.0,0.00010998,2]
[323504630,1714057844139,-500.0,0.00010998,2]
[323504631,1714057844150,-500.0,0.00010998,2]
[323504632,1714057844159,-1215.53,0.00010998,2]
[323504633,1714057844168,-500.0,0.00010998,2]
[323504634,1714057844177,-500.0,0.00010998,2]
[323504635,1714057844187,-500.0,0.00010998,2]
[323504636,1714057844196,-500.0,0.00010998,2]
[323504637,1714057844205,-500.0,0.00010998,2]
[323504638,1714057844214,-500.0,0.00010998,2]
[323504639,1714057844224,-500.0,0.00010998,2]
[323504640,1714057844233,-500.0,0.00010998,2]
[323504641,1714057844243,-683.44,0.00010998,2]
[323504642,1714057844252,-338.82634515,0.00010998,2]
[323504643,1714057844261,-1542.48,0.00010998,2]
[323504644,1714057844271,-500.0,0.00010998,2]
[323504645,1714057844279,-500.0,0.00010998,2]
[323504646,1714057844289,-500.0,0.00010998,2]
[323504647,1714057844298,-500.0,0.00010998,2]
[323504648,1714057844308,-616.545956,0.00010998,2]
[323504649,1714057844317,-2638.39,0.00010998,2]
[323504650,1714057844326,-500.0,0.00010998,2]
[323504651,1714057844335,-501.91040959,0.00010998,2]
[323504652,1714057844345,-500.0,0.00010998,2]
[323504653,1714057844354,-1189.54,0.00010998,2]
[323504654,1714057844362,-500.0,0.00010998,2]
[323504655,1714057844372,-2212.82,0.00010998,2]
[323504656,1714057844382,-500.0,0.00010998,2]
[323504657,1714057844394,-500.0,0.00010998,2]
[323504658,1714057844403,-500.0,0.00010998,2]
[323504659,1714057844413,-500.0,0.00010998,2]
[323504660,1714057844422,-500.0,0.00010998,2]
[323504661,1714057844431,-1392.14,0.00010998,2]
[323504662,1714057844441,-1540.31,0.00010998,2]
[323504663,1714057844451,-477.61792215,0.00010998,2]
[323504664,1714057844462,-166.69,0.00010998,2]
[323504665,1714057844472,-642.19050376,0.00010998,2]
[323504666,1714057844481,-500.0,0.00010998,2]
[323504667,1714057844490,-500.0,0.00010998,2]
[323504668,1714057844499,-500.0,0.00010998,2]
[323504669,1714057844509,-500.0,0.00010998,2]
[323504670,1714057844518,-500.0,0.00010998,2]
[323504671,1714057844527,-3200.04,0.00010998,2]
[323504672,1714057844537,-2041.43,0.00010998,2]
[323504673,1714057844546,-500.0,0.00010998,2]
[323504674,1714057844556,-500.0,0.00010998,2]
[323504675,1714057844565,-500.0,0.00010998,2]
[323504676,1714057844574,-500.0,0.00010998,2]
[323504677,1714057844583,-500.0,0.00010998,2]
[323504678,1714057844592,-500.0,0.00010998,2]
[323504679,1714057844601,-184.49,0.00010998,2]
[323504680,1714057844621,-500.0,0.00010998,2]
[323504681,1714057844632,-549.36,0.00010998,2]
[323504682,1714057844642,-500.0,0.00010998,2]
[323504683,1714057844652,-500.0,0.00010998,2]
[323504684,1714057844662,-507.27,0.00010998,2]
[323504685,1714057844672,-588.1,0.00010998,2]
[323504686,1714057844682,-500.0,0.00010998,2]
[323504687,1714057844691,-500.0,0.00010998,2]
[323504688,1714057844700,-522.44,0.00010998,2]
[323504689,1714057844710,-500.81687954,0.00010998,2]
[323504690,1714057844720,-500.0,0.00010998,2]
[323504691,1714057844730,-500.0,0.00010998,2]
[323504692,1714057844740,-500.0,0.00010998,2]
[323504693,1714057844749,-500.0,0.00010998,2]
[323504694,1714057844759,-500.0,0.00010998,2]
[323504695,1714057844768,-500.0,0.00010998,2]
[323504696,1714057844778,-485.47,0.00010998,2]
[323504697,1714057844787,-500.0,0.00010998,2]
[323504698,1714057844797,-556.18,0.00010998,2]
[323504699,1714057844806,-500.0,0.00010998,2]
[323504700,1714057844816,-5144.91,0.00010998,2]
[323504701,1714057844825,-508.57551046,0.00010998,2]
[323504702,1714057844835,-503.72,0.00010998,2]
[323504703,1714057844844,-500.0,0.00010998,2]
[323504704,1714057844854,-500.0,0.00010998,2]
[323504705,1714057844865,-1462.19,0.00010998,2]
[323504706,1714057844874,-500.0,0.00010998,2]
[323504707,1714057844884,-500.0,0.00010998,2]
[323504708,1714057844894,-500.0,0.00010998,2]
[323504709,1714057844904,-1574.09,0.00010998,2]
[323504710,1714057844913,-500.0,0.00010998,2]
[323504711,1714057844922,-500.0,0.00010998,2]
[323504712,1714057844931,-500.0,0.00010998,2]
[323504713,1714057844941,-259.65872022,0.00010998,2]
[323504714,1714057844950,-500.0,0.00010998,2]
[323504715,1714057844960,-500.0,0.00010998,2]
[323504716,1714057844969,-500.0,0.00010998,2]
[323504717,1714057844979,-450.11,0.00010998,2]
[323504718,1714057844988,-500.0,0.00010998,2]
[323504719,1714057844997,-500.14378022,0.00010998,2]
[323504720,1714057845006,-500.0,0.00010998,2]
[323504721,1714057845016,-500.0,0.00010998,2]
[323504722,1714057845025,-500.0,0.00010998,2]
[323504723,1714057845035,-500.0,0.00010998,2]
[323504724,1714057845244,-428.26904794,0.00010998,2]
[323504725,1714057845254,-718.03,0.00010998,2]
[323504726,1714057845264,-500.0,0.00010998,2]
[323504727,1714057845273,-500.0,0.00010998,2]
[323504728,1714057845282,-500.0,0.00010998,2]
[323504729,1714057845291,-742.44,0.00010998,2]
[323504730,1714057845300,-696.01,0.00010998,2]
[323504731,1714057845309,-500.0,0.00010998,2]
[323504732,1714057845318,-523.83669044,0.00010998,2]
[323504733,1714057845328,-500.0,0.00010998,2]
[323504734,1714057845337,-672.5,0.00010998,2]
[323504735,1714057845347,-500.0,0.00010998,2]
[323504736,1714057845356,-500.0,0.00010998,2]
[323504737,1714057845365,-500.0,0.00010998,2]
[323504738,1714057845374,-500.0,0.00010998,2]
[323504739,1714057845385,-500.0,0.00010998,2]
[323504740,1714057845397,-500.0,0.00010998,2]
[323504741,1714057845407,-657.57,0.00010998,2]
[323504742,1714057845416,-500.0,0.00010998,2]
[323504743,1714057845426,-566.08,0.00010998,2]
[323504744,1714057845436,-500.56456721,0.00010998,2]
[323504745,1714057845446,-2009.71,0.00010998,2]
[323504746,1714057845455,-500.0,0.00010998,2]
[323504747,1714057845464,-720.73,0.00010998,2]
[323504748,1714057845474,-11554.76,0.00010998,2]
[323504749,1714057845484,-674.3,0.00010998,2]
[323504750,1714057845493,-500.0,0.00010998,2]
[323504751,1714057845502,-500.0,0.00010999,2]
[323504752,1714057845511,-234.61252294,0.00010999,2]
[323504753,1714057845522,-500.0,0.00010999,2]
[323504754,1714057845531,-232.52079518,0.00010999,2]
[323504755,1714057845541,-500.0,0.00010999,2]
[323504756,1714057845550,-500.0,0.00010999,2]
[323504757,1714057845559,-500.0,0.00010999,2]
[323504758,1714057845568,-500.0,0.00010999,2]
[323504759,1714057845577,-500.0,0.00010999,2]
[323504760,1714057845587,-499.97953853,0.00010999,2]
[323504761,1714057845596,-642.31924095,0.00010999,2]
[323504762,1714057845605,-500.0,0.00010999,2]
[323504763,1714057845615,-500.0,0.00010999,2]
[323504764,1714057845624,-500.0,0.00010999,2]
[323504765,1714057845634,-500.0,0.00010999,2]
[323504766,1714057845643,-500.0,0.00010999,2]
[323504767,1714057845654,-500.0,0.00010999,2]
[323504768,1714057845663,-500.0,0.00010999,2]
[323504769,1714057845672,-186.94819672,0.00010999,2]
[323504770,1714057845682,-500.0,0.00010999,2]
[323504771,1714057845691,-284.18477982,0.00010999,2]
[323504772,1714057845700,-567.19,0.00010999,2]
[323504773,1714057845709,-500.0,0.00010999,2]
[323504774,1714057845718,-500.0,0.00010999,2]
[323504775,1714057845727,-500.0,0.00010999,2]
[323504776,1714057845737,-185.65416208,0.00010999,2]
[323504777,1714057845746,-500.0,0.00010999,2]
[323504778,1714057845755,-503.90830767,0.00010999,2]
[323504779,1714057845764,-500.0,0.00010999,2]
[323504780,1714057845774,-500.0,0.00010999,2]
[323504781,1714057845784,-500.0,0.00010999,2]
[323504782,1714057845794,-500.0,0.00010999,2]
[323504783,1714057845803,-500.0,0.00010999,2]
[323504784,1714057845813,-500.0,0.00010999,2]
[323504785,1714057845822,-500.0,0.00010999,2]
[323504786,1714057845832,-599.67,0.00010999,2]
[323504787,1714057845841,-797.59,0.00010999,2]
[323504788,1714057845851,-500.0,0.00010999,2]
[323504789,1714057845860,-500.0,0.00010999,2]
[323504790,1714057845869,-500.0,0.00010999,2]
[323504791,1714057845879,-500.0,0.00010999,2]
[323504792,1714057845888,-500.0,0.00010999,2]
[323504793,1714057845897,-524.76,0.00010999,2]
[323504794,1714057845907,-500.0,0.00010999,2]
[323504795,1714057845916,-500.0,0.00010999,2]
[323504796,1714057845925,-500.0,0.00010999,2]
[323504797,1714057845935,-542.12,0.00010999,2]
[323504798,1714057845944,-500.0,0.00010999,2]
[323504799,1714057845953,-214.62,0.00010999,2]
[323504800,1714057845963,-500.0,0.00010999,2]
[323504801,1714057845972,-500.0,0.00010999,2]
[323504802,1714057845981,-500.0,0.00010999,2]
[323504803,1714057845991,-500.0,0.00010999,2]
[323504804,1714057846000,-500.0,0.00010999,2]
[323504805,1714057846010,-500.0,0.00010999,2]
[323504806,1714057846021,-500.0,0.00010999,2]
[323504807,1714057846030,-221.02,0.00010999,2]
[323504808,1714057846039,-513.41098342,0.00010999,2]
[323504809,1714057846048,-500.0,0.00010999,2]
[323504810,1714057846057,-500.0,0.00010999,2]
[323504811,1714057846067,-568.11,0.00010999,2]
[323504812,1714057846076,-500.0,0.00010999,2]
[323504813,1714057846085,-500.0,0.00010999,2]
[323504814,1714057846095,-500.0,0.00010999,2]
[323504815,1714057846103,-476.9,0.00010999,2]
[323504816,1714057846113,-500.0,0.00010999,2]
[323504817,1714057846121,-176.78571991,0.00010999,2]
[323504818,1714057846131,-500.0,0.00010999,2]
[323504819,1714057846140,-523.81032441,0.00010999,2]
[323504820,1714057846150,-500.0,0.00010999,2]
[323504821,1714057846160,-500.0,0.00010999,2]
[323504822,1714057846169,-500.0,0.00010999,2]
[323504823,1714057846178,-811.08,0.00010999,2]
[323504824,1714057846187,-500.0,0.00010999,2]
[323504825,1714057846196,-500.0,0.00010999,2]
[323504826,1714057846205,-500.0,0.00010999,2]
[323504827,1714057846214,-500.0,0.00010999,2]
[323504828,1714057846224,-500.0,0.00010999,2]
[323504829,1714057846233,-500.0,0.00010999,2]
[323504830,1714057846243,-500.0,0.00010999,2]
[323504831,1714057846252,-500.0,0.00010999,2]
[323504832,1714057846261,-510.47311805,0.00010999,2]
[323504833,1714057846271,-500.0,0.00010999,2]
[323504834,1714057846281,-510.24,0.00010999,2]
[323504835,1714057846290,-504.65552685,0.00010999,2]
[323504836,1714057846299,-550.04685249,0.00010999,2]
[323504837,1714057846308,-500.0,0.00010999,2]
[323504838,1714057846317,-500.0,0.00010999,2]
[323504839,1714057846327,-502.79759738,0.00010999,2]
[323504840,1714057846336,-500.0,0.00010999,2]
[323504841,1714057846346,-565.5,0.00010999,2]
[323504842,1714057846355,-500.0,0.00010999,2]
[323504843,1714057846365,-500.0,0.00010999,2]
[323504844,1714057846374,-428.93650723,0.00010999,2]
[323504845,1714057846387,-500.0,0.00010999,2]
[323504846,1714057846396,-500.0,0.00010999,2]
[323504847,1714057846406,-520.16628309,0.00010999,2]
[323504848,1714057846415,-712.48,0.00010999,2]
[323504849,1714057846425,-500.0,0.00010999,2]
[323504850,1714057846435,-500.0,0.00010999,2]
[323504851,1714057846445,-921.08,0.00010999,2]
[323504852,1714057846455,-500.0,0.00010999,2]
[323504853,1714057846465,-504.41604531,0.00010999,2]
[323504854,1714057846474,-506.71430422,0.00010999,2]
[323504855,1714057846482,-500.0,0.00010999,2]
[323504856,1714057846491,-500.0,0.00010999,2]
[323504857,1714057846501,-500.0,0.00010999,2]
[323504858,1714057846510,-500.0,0.00010999,2]
[323504859,1714057846519,-500.0,0.00010999,2]
[323504860,1714057846528,-500.0,0.00010999,2]
[323504861,1714057846537,-502.708902,0.00010999,2]
[323504862,1714057846548,-503.51470456,0.00010999,2]
[323504863,1714057846557,-500.0,0.00010999,2]
[323504864,1714057846567,-519.04954853,0.00010999,2]
[323504865,1714057846576,-500.0,0.00010999,2]
[323504866,1714057846585,-500.0,0.00010999,2]
[323504867,1714057846593,-500.0,0.00010999,2]
[323504868,1714057846602,-500.0,0.00010999,2]
[323504869,1714057846611,-500.0,0.00010999,2]
[323504871,1714057846620,-503.07719391,0.00010999,2]
[323504872,1714057846631,-500.0,0.00010999,2]
[323504874,1714057846639,-568.24586919,0.00010999,2]
[323504875,1714057846648,-1141.01,0.00010999,2]
[323504877,1714057846657,-500.0,0.00010999,2]
[323504879,1714057846667,-500.0,0.00010999,2]
[323504881,1714057846676,-500.0,0.00010999,2]
[323504883,1714057846684,-500.0,0.00010999,2]
[323504885,1714057846694,-500.0,0.00010999,2]
[323504886,1714057846703,-500.0,0.00010999,2]
[323504888,1714057846712,-500.0,0.00010999,2]
[323504889,1714057846722,-500.0,0.00010999,2]
[323504890,1714057846731,-500.0,0.00010999,2]
[323504891,1714057846741,-501.57353262,0.00010999,2]
[323504893,1714057846750,-500.0,0.00010999,2]
[323504895,1714057846759,-500.0,0.00010999,2]
[323504896,1714057846769,-500.0,0.00010999,2]
[323504897,1714057846778,-610.51,0.00010999,2]
[323504898,1714057846788,-503.23846258,0.00010999,2]
[323504899,1714057846798,-685.84,0.00010999,2]
[323504900,1714057846807,-500.0,0.00010999,2]
[323504901,1714057846817,-507.59429886,0.00010999,2]
[323504902,1714057846827,-500.0,0.00010999,2]
[323504903,1714057846835,-255.11632496,0.00010999,2]
[323504904,1714057846844,-500.0,0.00010999,2]
[323504905,1714057846852,-500.0,0.00010999,2]
[323504906,1714057846861,-500.0,0.00010999,2]
[323504907,1714057846870,-1446.8,0.00010999,2]
[323504908,1714057846880,-500.0,0.00010999,2]